bitfinex/quotes_ETHUSD_20260226
["timestamp","ask_amount","ask_price","bid_price","bid_amount"]
[1772123191949,0.51387674,2038.3,2037.2,0.49246209]
[1772123192154,1.22655103,2038.3,2037.3,13.67408509]
[1772123192459,1.22655103,2038.3,2037.4,1.29546209]
[1772123192792,1.22621149,2038.8,2037.7,0.49246209]
[1772123193176,1.22621149,2038.8,2037.8,1.22681322]
[1772123193379,1.74007001,2038.9,2037.9,0.804]
[1772123193594,1.74007001,2038.9,2037.8,1.22681322]
[1772123193766,0.51387674,2038.8,2037.8,0.803]
[1772123195274,0.52004384,2038.6,2037.5,1.22699386]
[1772123196297,0.52004384,2038.6,2037.4,0.4724241]
[1772123196495,0.52004384,2038.6,2037.3,0.803]
[1772123196701,0.52004384,2038.6,2037.1,5.38130091]
[1772123196702,0.52004384,2038.3,2037.1,1.6996356]
[1772123196866,0.52004384,2038.3,2037.2,0.804]
[1772123197294,0.52004384,2038.1,2036.9,1.51931976]
[1772123197597,0.52004384,2038.1,2037.0,1.99174386]
[1772123197888,0.52004384,2038.1,2037.6,0.0011]
[1772123199097,0.52004384,2038.1,2037.0,1.51931976]
[1772123199098,0.52004384,2038.1,2036.7,6.90164291]
[1772123199262,0.52004384,2037.8,2036.9,0.805]
[1772123199771,1.22669283,2038.0,2036.9,2.80067639]
[1772123200382,1.22669283,2038.0,2037.2,1.51931976]
[1772123200586,1.22669283,2038.0,2037.0,0.47635663]
[1772123201179,1.22681322,2037.8,2037.0,0.804]
[1772123201500,1.72800415,2037.8,2037.0,0.804]
[1772123202379,1.22681322,2037.8,2037.0,0.804]
[1772123202698,1.22681322,2037.8,2037.0,1.28035663]
[1772123203197,4.90725291,2038.0,2037.1,1.22723479]
[1772123203371,4.90725291,2038.0,2037.1,3.22291118]
[1772123203566,1.22663264,2038.1,2037.2,0.47635663]
[1772123203772,1.22663264,2038.1,2037.3,1.51931976]
[1772123204197,1.22663264,2038.1,2037.3,1.99567639]
[1772123204682,1.22652048,2038.3,2037.4,0.47635663]
[1772123204894,1.22748042,2038.4,2037.5,2.79867639]
[1772123205074,1.22748042,2038.4,2037.6,0.47635663]
[1772123205273,0.001,2038.4,2037.6,1.70326606]
[1772123205903,0.001,2038.4,2037.6,0.47635663]
[1772123206104,0.50119093,2038.3,2037.4,0.803]
[1772123206279,0.001,2038.4,2037.4,1.27935663]
[1772123206486,0.001,2038.4,2037.5,1.99567639]
[1772123207000,0.001,2038.4,2037.6,0.47635663]
[1772123207307,0.001,2038.4,2037.7,1.22687343]
[1772123207495,0.001,2038.4,2037.8,0.47635663]
[1772123207697,0.001,2038.4,2037.9,0.803]
[1772123208716,0.001,2038.4,2037.5,4.90749374]
[1772123208717,0.50119093,2038.3,2037.2,15.17729939]
[1772123208898,0.50119093,2038.3,2037.2,1.99567639]
[1772123209612,1.22657246,2038.2,2037.3,2.03111431]
[1772123211114,0.001,2038.2,2037.6,0.0011]
[1772123211284,0.001,2038.2,2037.6,0.47745663]
[1772123211606,0.001,2038.2,2037.7,1.22687343]
[1772123211805,0.001,2038.2,2037.8,0.804]
[1772123212611,1.22638003,2038.6,2037.8,0.804]
[1772123213608,4.90520283,2038.7,2037.8,2.03080023]
[1772123213984,4.90520283,2038.7,2037.8,2.50715686]
[1772123214614,0.50119093,2038.6,2037.8,0.804]
[1772123214810,0.50119093,2038.6,2037.8,2.03079813]
[1772123215416,4.90492558,2038.8,2037.9,0.47635663]
[1772123215620,1.22621149,2038.8,2038.0,1.22669283]
[1772123216029,1.22618143,2038.9,2038.0,1.70304946]
[1772123217428,1.72737236,2038.9,2038.0,1.22669283]
[1772123217646,1.22639195,2038.5,2037.6,0.0011]
[1772123217934,0.50119093,2038.4,2037.6,0.0011]
[1772123218124,0.50119093,2038.4,2037.6,1.22802027]
[1772123218438,0.50119093,2038.4,2037.6,0.0011]
[1772123219613,1.22651228,2038.3,2037.6,0.0011]
[1772123219814,0.50119093,2038.2,2037.6,0.0011]
[1772123220319,0.50119093,2038.0,2037.6,0.0011]
[1772123220534,1.51931976,2038.1,2037.6,0.0011]
[1772123220745,0.50119093,2038.2,2037.6,0.0011]
[1772123221111,0.50119093,2038.2,2037.4,0.0011]
[1772123221636,0.50119093,2037.9,2037.4,0.0011]
[1772123221834,0.50119093,2037.7,2036.8,2.029412]
[1772123222135,0.50119093,2037.7,2036.8,0.802]
[1772123222337,0.50119093,2037.7,2036.8,2.02938034]
[1772123222558,0.50119093,2037.7,2036.8,2.50573697]
[1772123223649,0.50119093,2037.7,2036.8,2.02940878]
[1772123223860,1.22693364,2037.6,2036.8,2.02940878]
[1772123224032,1.22693364,2037.6,2036.8,2.02941175]
[1772123224233,1.22693364,2037.6,2036.8,0.802]
[1772123224432,1.22663264,2038.1,2037.2,0.47635663]
[1772123224834,1.72782357,2038.1,2037.2,0.47635663]
[1772123225234,0.50119093,2038.1,2037.2,0.47635663]
[1772123225460,1.2276144,2038.2,2037.4,0.47635663]
[1772123225966,0.001,2038.2,2037.5,1.22699386]
[1772123227472,0.001,2038.2,2037.5,1.70335049]
[1772123227967,0.50219093,2038.2,2037.4,1.22702785]
[1772123228468,0.50219093,2038.2,2037.2,1.22714508]
[1772123228640,0.50119093,2038.0,2037.2,2.02914508]
[1772123229042,0.50119093,2038.0,2037.0,0.0011]
[1772123229275,0.50119093,2037.7,2037.0,0.0011]
[1772123229843,1.22693364,2037.6,2037.0,0.0011]
[1772123230252,0.47287399,2037.5,2037.0,0.0011]
[1772123230977,1.22693364,2037.6,2037.0,0.0011]
[1772123232078,0.47287399,2037.6,2037.0,0.0011]
[1772123232258,1.99219375,2037.5,2037.0,0.0011]
[1772123232461,0.47287399,2037.5,2037.0,0.0011]
[1772123233189,0.47287399,2037.8,2037.0,0.0011]
[1772123233364,1.158,2038.0,2037.0,0.50649408]
[1772123234081,1.22675303,2037.9,2037.1,1.22723479]
[1772123234768,1.22675303,2037.9,2037.0,0.0011]
[1772123234769,0.47287399,2037.8,2037.0,0.0011]
[1772123234973,0.47287399,2037.8,2037.0,1.22838667]
[1772123235175,1.22675303,2037.9,2037.0,1.73378075]
[1772123236070,1.158,2038.0,2037.3,1.22711431]
[1772123236271,1.2276006,2038.2,2037.4,0.50539408]
[1772123236460,0.001,2038.2,2037.5,0.50539408]
[1772123236870,1.22757577,2038.2,2037.4,0.8]
[1772123237064,0.001,2038.2,2037.4,0.8]
[1772123237258,0.001,2038.2,2037.5,0.50539408]
[1772123237666,1.22758014,2038.2,2037.5,0.50539408]
[1772123238087,0.001,2038.2,2037.6,1.22693364]
[1772123238467,0.47387399,2038.2,2037.4,2.02701411]
[1772123238662,1.51931976,2038.1,2037.1,1.22719203]
[1772123238869,0.47287399,2037.9,2037.0,1.22838921]
[1772123239090,0.47287399,2037.9,2037.0,1.22838646]
[1772123239706,0.47287399,2037.7,2037.0,0.0011]
[1772123240195,1.22693364,2037.6,2037.0,0.0011]
[1772123240499,5.38060857,2037.7,2037.0,0.0011]
[1772123240500,1.22690649,2037.7,2037.0,0.0011]
[1772123240707,1.22675303,2037.9,2037.0,0.50649408]
[1772123241798,0.001,2038.2,2037.0,0.50649408]
[1772123241980,1.22663264,2038.1,2037.2,0.50539408]
[1772123242169,1.22757246,2038.2,2037.4,1.22705408]
[1772123243219,1.22757246,2038.2,2037.4,2.02705408]
[1772123243220,0.001,2038.2,2037.4,2.02705408]
[1772123243699,0.001,2038.2,2037.4,2.53244816]
[1772123244290,0.001,2038.2,2037.4,2.02705408]
[1772123244484,0.001,2038.2,2037.5,2.02471384]
[1772123244679,0.001,2038.2,2037.4,2.02705408]
[1772123245014,0.001,2038.2,2037.4,2.53244816]
[1772123247121,0.001,2038.2,2037.5,0.50539408]
[1772123248903,0.001,2038.2,2037.6,1.22693364]
[1772123249106,0.47387399,2038.2,2037.4,0.8]
[1772123249309,0.47287399,2038.1,2037.4,0.8]
[1772123249690,0.47387399,2038.0,2037.0,0.8031]
[1772123249889,0.47387399,2038.0,2037.4,0.0011]
[1772123250828,0.001,2038.0,2037.4,0.0011]
[1772123251511,1.22769283,2038.0,2037.4,0.0011]
[1772123252948,0.001,2038.0,2037.4,0.0011]
[1772123253156,0.001,2038.0,2037.5,0.802]
[1772123253563,0.001,2038.0,2037.6,1.22693364]
[1772123255042,0.001,2038.0,2037.5,2.02899059]
[1772123255237,0.001,2038.0,2037.5,0.802]
[1772123256123,0.001,2038.0,2037.5,2.02899048]
[1772123256336,0.001,2038.0,2037.5,0.802]
[1772123256735,0.49058805,2038.0,2037.5,0.802]
[1772123257525,0.001,2038.0,2037.5,0.802]
[1772123257727,0.49058805,2038.0,2037.5,0.802]
[1772123257921,1.71634108,2037.9,2037.4,0.0011]
[1772123258660,1.22774287,2038.0,2037.4,1.2281489]
[1772123258957,0.001,2038.0,2037.4,1.2281489]
[1772123259428,0.001,2038.0,2037.4,1.69897979]
[1772123259851,1.22769563,2038.0,2037.4,1.69897979]
[1772123260029,0.001,2038.0,2037.4,1.69897979]
[1772123260428,0.001,2038.0,2037.6,2.6005949]
[1772123260752,0.001,2038.0,2037.7,0.808]
[1772123261079,1.22633179,2038.6,2037.7,1.28173974]
[1772123261733,1.72321117,2038.6,2037.7,1.28173974]
[1772123262325,1.72321117,2038.6,2037.7,2.50855313]
[1772123262747,0.49687938,2038.5,2037.4,0.8091]
[1772123262930,1.22633179,2038.6,2037.4,0.8091]
[1772123262931,0.49687938,2038.3,2037.4,0.8091]
[1772123263139,0.49687938,2038.3,2037.4,2.03614916]
[1772123263546,0.49687938,2038.3,2037.4,2.5098889]
[1772123263759,0.49687938,2038.3,2037.6,0.0011]
[1772123264276,0.001,2037.8,2037.6,0.0011]
[1772123265297,0.49687938,2038.3,2037.6,0.0011]
[1772123265455,1.72333149,2038.5,2037.6,0.47483974]
[1772123266369,1.72333149,2038.5,2037.6,1.70174502]
[1772123266880,0.49687938,2038.4,2037.6,1.22800528]
[1772123268580,1.22651228,2038.3,2037.6,1.22800528]
[1772123268751,1.22651228,2038.3,2037.6,1.70174502]
[1772123269574,0.49687938,2038.6,2037.7,0.47373974]
[1772123269782,0.49687938,2038.6,2037.8,0.809]
[1772123270484,0.49687938,2038.6,2037.8,1.28273974]
[1772123270795,1.22631633,2038.7,2037.9,1.70049277]
[1772123270990,1.22624882,2038.8,2038.0,0.47373974]
[1772123271930,1.72306992,2038.9,2038.0,0.47373974]
[1772123272800,0.49687938,2038.9,2038.2,0.47373974]
[1772123273004,1.22612059,2039.0,2038.3,0.809]
[1772123273176,1.72299997,2039.0,2038.3,0.809]
[1772123273577,0.49687938,2038.9,2038.3,0.809]
[1772123273905,1.22612059,2039.0,2038.3,0.809]
[1772123274606,1.22607941,2039.1,2038.4,0.47373974]
[1772123275135,0.49687938,2039.0,2038.3,0.809]
[1772123275278,1.22607941,2039.1,2037.9,2.03574235]
[1772123275279,0.49687938,2038.8,2037.9,2.03574235]
[1772123276507,0.49787938,2038.8,2037.9,2.03574235]
[1772123278407,0.49687938,2038.6,2037.9,2.03574235]
[1772123280027,1.22724567,2038.8,2038.0,0.47373974]
[1772123280416,0.001,2038.8,2038.2,0.47373974]
[1772123280610,0.001,2038.8,2038.3,0.809]
[1772123281190,0.49787938,2038.8,2038.0,1.22665066]
[1772123282030,0.49787938,2038.8,2037.9,2.03571259]
[1772123282215,0.49687938,2038.7,2037.9,2.03574873]
[1772123282416,1.22633179,2038.6,2037.9,2.03574873]
[1772123282714,0.001,2038.8,2038.0,0.47373974]
[1772123283393,0.001,2038.8,2038.3,0.47373974]
[1772123283586,0.001,2038.8,2038.4,1.28273974]
[1772123284016,0.001,2038.8,2038.4,0.809]
[1772123284628,0.001,2038.8,2038.4,2.03539588]
[1772123285005,0.49787938,2038.8,2038.0,2.03564629]
[1772123285329,0.49787938,2038.8,2038.0,2.0356866]
[1772123285801,0.001,2038.8,2038.1,0.47373974]
[1772123286008,0.49687938,2039.2,2038.1,0.47373974]
[1772123286335,0.49687938,2038.9,2038.0,2.0356866]
[1772123286532,0.49687938,2039.3,2038.3,0.47373974]
[1772123286746,1.22597096,2039.2,2038.4,2.03645211]
[1772123286946,0.49687938,2039.1,2038.4,0.81]
[1772123287227,0.49687938,2039.1,2038.0,0.47373974]
[1772123287228,0.49687938,2038.8,2038.0,0.795]
[1772123288418,0.49687938,2038.8,2037.8,1.22786691]
[1772123288816,4.9036661,2039.3,2037.8,1.22786691]
[1772123288817,0.49687938,2039.3,2037.9,0.08192]
[1772123289025,0.49687938,2039.3,2038.3,0.47373974]
[1772123289518,1.38515554,2039.4,2038.3,0.47373974]
[1772123289715,0.4903284,2039.3,2038.3,0.47373974]
[1772123289918,0.001,2039.2,2038.3,0.47373974]
[1772123290413,0.001,2039.2,2038.6,0.50548327]
[1772123290617,0.4903284,2039.9,2038.2,4.25371032]
[1772123290618,0.4903284,2040.4,2039.1,0.50548327]
[1772123290794,0.4903284,2040.2,2039.3,1.22591085]
[1772123291225,0.4903284,2040.2,2039.2,1.22593314]
[1772123291427,0.4903284,2040.2,2039.1,1.22598959]
[1772123291933,2.61718356,2040.1,2039.1,1.22598959]
[1772123292103,0.4903284,2040.0,2039.1,1.22598959]
[1772123292523,0.4903284,2040.0,2039.0,2.03506602]
[1772123292831,1.22555027,2039.9,2039.0,2.54054929]
[1772123293123,1.71583784,2040.0,2039.0,4.66740445]
[1772123293294,0.4903284,2040.6,2039.6,2.12685516]
[1772123293497,0.4903284,2040.6,2039.5,0.50548327]
[1772123294001,0.4903284,2040.6,2039.5,0.809]
[1772123294194,0.4903284,2040.6,2039.5,2.93585516]
[1772123294833,0.4903284,2040.4,2039.5,2.03478471]
[1772123295001,0.4903284,2040.4,2039.3,1.22587258]
[1772123295196,0.4903284,2041.0,2040.1,2.12685516]
[1772123295700,0.4903284,2040.9,2039.8,0.808]
[1772123295897,3.26885516,2041.0,2039.4,0.795]
[1772123295898,0.4903284,2040.6,2039.4,0.795]
[1772123296126,0.4903284,2040.6,2039.3,1.22587258]
[1772123296127,0.4903284,2040.3,2039.0,2.03406099]
[1772123296340,0.4903284,2040.2,2039.0,2.53954426]
[1772123296546,0.4903284,2040.2,2039.0,2.52601226]
[1772123296704,0.4903284,2040.2,2039.0,1.73156952]
[1772123297041,0.4903284,2040.0,2038.7,3.85856479]
[1772123297215,0.4903284,2039.8,2038.7,1.73170963]
[1772123297403,0.4903284,2039.8,2038.8,2.12685516]
[1772123297809,0.4903284,2039.8,2038.9,0.50548327]
[1772123298329,0.4903284,2039.8,2039.1,2.12685516]
[1772123298502,1.71575852,2040.1,2039.1,2.12685516]
[1772123298830,0.4903284,2040.0,2039.1,2.12685516]
[1772123299039,2.85767589,2040.3,2039.2,1.73145423]
[1772123299246,0.4903284,2040.4,2039.5,2.12685516]
[1772123299557,0.4903284,2040.4,2039.2,1.22597096]
[1772123299755,0.4903284,2040.4,2039.1,1.22598824]
[1772123300044,0.4903284,2040.3,2039.1,1.22598824]
[1772123301353,0.4903284,2040.1,2039.1,1.22598824]
[1772123301932,2.12685516,2040.0,2038.6,4.90516115]
[1772123302162,0.4903284,2039.8,2038.6,1.22633179]
[1772123302466,0.4913284,2039.6,2039.0,0.0011]
[1772123303239,1.22579063,2039.5,2039.0,0.0011]
[1772123304142,1.71710707,2039.6,2039.0,0.0011]
[1772123304343,0.4913284,2039.6,2039.0,0.0011]
[1772123304652,0.001,2039.6,2039.0,0.0011]
[1772123305058,1.22674469,2039.6,2039.0,0.0011]
[1772123305529,0.001,2039.6,2039.0,1.22719122]
[1772123306256,0.001,2039.6,2039.0,1.73267449]
[1772123308763,0.001,2039.6,2039.0,1.22718965]
[1772123309662,0.001,2039.6,2039.0,0.0011]
[1772123310051,0.4913284,2039.6,2039.0,0.0011]
[1772123310257,0.4913284,2039.6,2038.6,0.812]
[1772123310453,0.4903284,2039.4,2038.6,0.812]
[1772123310846,0.4903284,2039.4,2038.6,2.03832932]
[1772123311467,0.4903284,2039.4,2038.6,0.812]
[1772123311652,0.4903284,2039.4,2038.3,2.03846503]
[1772123312756,0.4903284,2039.2,2038.3,2.03846503]
[1772123312951,0.4903284,2039.2,2038.3,0.812]
[1772123313172,0.4903284,2039.2,2038.3,2.03849127]
[1772123313641,0.4903284,2039.2,2038.3,2.54397454]
[1772123313836,1.22591085,2039.3,2038.4,0.50548327]
[1772123314285,1.22588883,2039.4,2038.5,2.63233843]
[1772123314695,1.22588883,2039.4,2038.6,1.22633179]
[1772123314976,1.72390474,2039.4,2038.6,1.22633179]
[1772123315745,4.90337837,2039.5,2038.6,1.22633179]
[1772123315746,1.22583883,2039.5,2038.7,1.3160285]
[1772123316784,1.22673053,2039.6,2038.8,1.72923999]
[1772123317481,0.49801591,2039.5,2038.5,5.40958642]
[1772123317689,1.22673053,2039.6,2038.5,0.0011]
[1772123317690,0.49801591,2039.3,2038.5,0.0011]
[1772123317849,0.49801591,2039.1,2038.5,0.0011]
[1772123318766,1.72410713,2039.0,2038.5,0.0011]
[1772123319367,0.49801591,2038.9,2038.5,0.0011]
[1772123320766,1.22621149,2038.8,2038.5,0.0011]
[1772123325178,0.48325552,2038.7,2038.0,2.03973799]
[1772123325486,0.48325552,2038.7,2038.0,1.22778284]
[1772123325872,0.48325552,2038.7,2038.0,0.0011]
[1772123326189,0.48325552,2038.8,2038.0,0.0011]
[1772123326403,0.48325552,2038.8,2038.0,1.22779198]
[1772123326691,0.48325552,2038.8,2038.0,0.0011]
[1772123327021,0.48325552,2038.7,2038.0,0.0011]
[1772123327298,1.70958731,2038.6,2038.0,0.0011]
[1772123327611,0.48325552,2038.2,2037.8,0.0011]
[1772123329090,1.22663264,2038.1,2037.8,0.0011]
[1772123329265,1.70988816,2038.1,2037.8,0.0011]
[1772123329796,1.22656189,2038.3,2037.8,0.0011]
[1772123330310,1.70975278,2038.4,2037.8,0.0011]
[1772123330770,1.22643886,2038.5,2037.8,0.48420901]
[1772123331275,4.90543652,2038.6,2037.9,1.22675303]
[1772123331276,5.38869204,2038.6,2037.9,1.22675303]
[1772123331800,5.38869204,2038.6,2037.8,1.71098256]
[1772123332101,1.70958731,2038.6,2037.8,1.71098256]
[1772123332982,0.48325552,2038.5,2037.8,0.0011]
[1772123333182,1.22645211,2038.4,2037.8,0.0011]
[1772123333382,1.70970763,2038.4,2037.8,0.0011]
[1772123334096,1.70955977,2038.7,2037.9,0.48310901]
[1772123335503,1.70955977,2038.7,2037.9,1.70981113]
[1772123335677,0.48325552,2038.6,2037.9,1.70981113]
[1772123336100,0.48325552,2038.6,2037.9,0.48310901]
[1772123336397,0.48325552,2038.5,2037.8,0.0011]
[1772123336597,0.48325552,2038.3,2037.8,0.0011]
[1772123338107,0.48325552,2038.1,2037.8,0.0011]
[1772123338296,0.48325552,2038.1,2037.6,0.0011]
[1772123340086,0.48325552,2037.9,2037.6,0.0011]
[1772123340789,0.48325552,2037.6,2037.1,0.0011]
[1772123341000,0.48325552,2037.4,2037.1,0.0011]
[1772123341203,2.72614234,2037.9,2037.1,0.0011]
[1772123341204,0.48325552,2037.7,2037.1,0.0011]
[1772123341716,0.48325552,2037.5,2037.1,0.0011]
[1772123341875,0.48325552,2037.3,2037.1,0.0011]
[1772123342212,0.48325552,2037.3,2036.5,0.0011]
[1772123342213,1.71043007,2037.2,2036.5,0.0011]
[1772123342413,0.48325552,2037.1,2036.5,0.0011]
[1772123343716,1.71041937,2037.3,2036.5,0.0011]
[1772123344614,0.48325552,2037.2,2036.5,0.0011]
[1772123344788,1.22711264,2037.4,2036.5,0.48420901]
[1772123345707,1.71029905,2037.5,2036.5,0.48420901]
[1772123345912,1.22698251,2037.6,2036.7,0.48310901]
[1772123346411,1.71023803,2037.6,2036.7,0.48310901]
[1772123347217,0.48325552,2037.5,2036.7,0.48310901]
[1772123347403,0.48325552,2037.5,2036.7,1.71057904]
[1772123347606,1.22698251,2037.6,2036.7,1.71057904]
[1772123347804,1.22698251,2037.6,2036.8,0.48310901]
[1772123348114,1.71023803,2037.6,2036.8,0.48310901]
[1772123348422,1.22681322,2037.8,2037.1,0.48310901]
[1772123348785,1.71006874,2037.8,2036.9,0.81]
[1772123350116,1.71006874,2037.8,2037.0,1.22729504]
[1772123350911,0.49999706,2037.7,2037.0,1.22729504]
[1772123351313,0.49999706,2037.7,2036.9,0.81]
[1772123351515,0.49999706,2037.7,2036.9,2.0373434]
[1772123352096,0.49999706,2037.7,2036.5,0.0011]
[1772123352097,1.22711431,2037.3,2036.5,0.0011]
[1772123352313,0.49999706,2037.1,2036.5,0.0011]
[1772123352615,0.49999706,2037.1,2035.9,5.7218257]
[1772123352616,0.49999706,2037.0,2035.9,5.7218257]
[1772123353012,0.49999706,2037.0,2036.8,0.0011]
[1772123353211,0.49999706,2037.0,2035.9,5.7218257]
[1772123354406,1.22735529,2036.9,2035.9,6.1986106]
[1772123354724,1.22735529,2036.9,2036.0,0.4767849]
[1772123355521,1.72735235,2036.9,2036.0,0.4767849]
[1772123356820,1.72735235,2036.9,2036.1,1.22783753]
[1772123357031,0.49999706,2036.8,2035.9,0.81]
[1772123357456,0.49999706,2036.8,2035.6,0.0011]
[1772123357782,2.74397362,2036.9,2035.6,0.0011]
[1772123357783,0.49999706,2036.3,2035.6,0.0011]
[1772123358034,0.49999706,2036.6,2035.6,1.22923621]
[1772123358331,0.49999706,2036.4,2035.6,0.0011]
[1772123358635,1.72771399,2036.3,2035.6,0.0011]
[1772123359622,1.22771693,2036.3,2035.6,0.4778849]
[1772123359928,1.147,2036.5,2035.6,0.4778849]
[1772123359929,4.91041296,2036.5,2035.6,0.4778849]
[1772123360109,0.49999706,2036.4,2035.6,0.4778849]
[1772123360311,0.49999706,2036.4,2035.6,0.0011]
[1772123360533,1.22759636,2036.5,2035.6,0.0011]
[1772123360712,1.22758287,2036.6,2035.9,0.4767849]
[1772123361224,1.72757993,2036.6,2035.8,1.22801846]
[1772123361624,0.49999706,2036.5,2035.7,1.22803147]
[1772123361835,0.49999706,2036.5,2035.6,0.4778849]
[1772123362030,0.49999706,2036.5,2035.6,1.22923605]
[1772123362632,1.22765664,2036.4,2035.6,0.4778849]
[1772123363313,0.49999706,2036.9,2035.7,0.4767849]
[1772123363643,1.147,2036.8,2035.7,0.4767849]
[1772123363810,1.64699706,2036.8,2035.7,0.4767849]
[1772123364014,0.49999706,2036.7,2035.7,0.4767849]
[1772123364412,2.66361833,2036.8,2035.6,0.0011]
[1772123364413,0.49999706,2036.4,2035.6,0.0011]
[1772123364618,0.49999706,2036.4,2035.8,0.0011]
[1772123364818,1.72769773,2036.4,2035.8,0.0011]
[1772123365022,1.22770067,2036.4,2035.8,0.0011]
[1772123365764,1.72762724,2036.5,2035.8,0.0011]
[1772123366053,1.22855883,2036.6,2035.8,0.4778849]
[1772123366426,0.001,2036.6,2036.1,0.4767849]
[1772123366820,0.001,2036.6,2036.2,1.22777723]
[1772123367216,0.001,2036.6,2036.2,1.70456213]
[1772123367846,1.72726224,2037.1,2036.3,0.4767849]
[1772123368432,1.22720559,2037.2,2036.3,0.4767849]
[1772123368629,1.72720265,2037.2,2036.3,0.4767849]
[1772123368833,1.22720559,2037.2,2036.5,0.4767849]
[1772123369020,1.22720559,2037.2,2036.4,1.22765664]
[1772123369221,1.72720265,2037.2,2036.4,1.22765664]
[1772123370217,0.49999706,2037.1,2036.4,1.22765664]
[1772123370421,0.49999706,2037.0,2036.3,2.03870759]
[1772123370647,1.22720559,2037.2,2036.3,2.03870759]
[1772123370842,0.49999706,2037.1,2036.3,2.03870759]
[1772123372468,1.64599706,2037.1,2036.3,2.51549249]
[1772123372825,1.22729504,2037.0,2036.3,2.51549249]
[1772123373039,0.49999706,2036.9,2036.3,2.03870759]
[1772123373431,1.22729504,2037.0,2036.3,2.03870759]
[1772123373756,0.49999706,2036.9,2036.3,2.03870759]
[1772123374538,0.49999706,2036.9,2036.3,0.811]
[1772123374737,0.49999706,2036.9,2036.2,1.22773174]
[1772123374938,1.6967881,2036.8,2036.0,1.22789783]
[1772123376132,0.46937255,2036.7,2036.0,1.71680183]
[1772123376854,1.69687862,2036.7,2036.0,1.71680183]
[1772123377552,0.46937255,2036.7,2036.2,0.0011]
[1772123378049,0.001,2036.8,2036.2,0.0011]
[1772123378251,0.001,2036.8,2036.2,0.490004]
[1772123379252,1.69779567,2036.8,2036.2,0.0011]
[1772123379431,0.46937255,2036.7,2036.2,0.0011]
[1772123379636,0.46937255,2036.7,2036.2,1.2288698]
[1772123380553,0.48850567,2036.8,2036.2,1.2288698]
[1772123381139,1.22747581,2036.7,2036.2,0.0011]
[1772123381462,1.71592122,2036.8,2036.2,0.0011]
[1772123382228,0.001,2036.8,2036.2,0.48239805]
[1772123383228,0.001,2036.8,2036.3,1.22771693]
[1772123383829,0.001,2036.8,2036.3,1.70901498]
[1772123390168,0.48850567,2036.8,2036.5,0.0011]
[1772123390339,1.22747581,2036.7,2036.2,0.0011]
[1772123390535,0.48750567,2036.6,2036.2,0.0011]
[1772123391570,0.48750567,2036.6,2036.0,0.0011]
[1772123392472,0.48750567,2036.4,2036.0,0.0011]
[1772123392662,0.48750567,2036.2,2036.0,0.0011]
[1772123394361,1.22759636,2036.5,2036.0,0.0011]
[1772123394569,6.05738546,2036.6,2036.0,0.0011]
[1772123394992,6.54489113,2036.6,2036.0,0.0011]
[1772123396042,1.71502463,2036.7,2036.0,0.48239805]
[1772123396755,0.48750567,2036.6,2036.0,1.71029114]
[1772123398775,1.71507885,2036.6,2036.0,1.71029114]
[1772123400192,1.71507885,2036.6,2036.0,0.0011]
[1772123400497,1.63650567,2036.5,2035.8,0.48239805]
[1772123400661,0.48750567,2036.4,2035.8,0.48239805]
[1772123400858,0.48750567,2036.4,2035.8,0.0011]
[1772123400859,0.48750567,2036.2,2035.8,0.0011]
[1772123401081,1.22771693,2036.3,2035.6,0.0011]
[1772123401082,0.48750567,2036.0,2035.6,0.0011]
[1772123401556,7.04077975,2036.6,2035.6,0.0011]
[1772123401557,0.001,2037.6,2035.9,0.48129805]
[1772123401757,0.48750567,2037.5,2036.5,0.48129805]
[1772123401975,0.74118084,2037.5,2036.6,0.48129805]
[1772123402175,0.48750567,2037.5,2036.6,0.48129805]
[1772123402486,1.71545547,2037.6,2036.6,0.48129805]
[1772123402991,1.71545547,2037.6,2036.8,0.48129805]
[1772123403358,2.86445547,2037.6,2036.8,0.48129805]
[1772123404593,2.86445547,2037.6,2036.2,0.48239805]
[1772123404594,2.129912,2037.3,2036.2,0.48239805]
[1772123404784,0.48750567,2037.2,2036.2,0.0011]
[1772123404966,0.48750567,2037.0,2036.2,0.0011]
[1772123405663,1.149,2037.3,2036.5,0.48129805]
[1772123407202,1.22717455,2037.2,2036.6,1.22753608]
[1772123407507,1.22717455,2037.2,2036.5,1.70884769]
[1772123407706,6.057528,2037.3,2036.6,0.48129805]
[1772123407707,2.37616123,2037.3,2036.6,0.48129805]
[1772123408064,2.8636669,2037.3,2036.3,2.05171399]
[1772123408286,2.8636669,2037.3,2036.2,0.0011]
[1772123409494,1.7146669,2037.3,2036.2,0.0011]
[1772123409693,1.15,2037.2,2036.2,0.48736829]
[1772123409899,3.279912,2037.2,2036.2,0.0011]
[1772123410119,20.192445,2037.1,2036.2,0.0011]
[1772123410395,2.129912,2036.9,2036.2,0.0011]
[1772123410585,0.45473195,2036.7,2036.2,0.0011]
[1772123411418,1.22765664,2036.4,2036.2,0.0011]
[1772123412073,1.68238859,2036.4,2036.0,0.0011]
[1772123413178,0.45473195,2037.0,2036.1,0.48626829]
[1772123413381,2.38027981,2037.1,2036.3,0.48626829]
[1772123414202,0.45473195,2037.0,2036.1,3.8607488]
[1772123414398,0.45473195,2037.0,2036.0,0.8241]
[1772123414602,0.45473195,2037.0,2036.0,0.0011]
[1772123414766,0.45473195,2037.0,2036.0,1.22899472]
[1772123414970,0.45473195,2037.0,2036.4,0.0011]
[1772123415285,0.45473195,2036.8,2036.4,0.0011]
[1772123415482,1.60773195,2036.7,2036.4,0.0011]
[1772123416202,0.45473195,2036.6,2036.0,0.0011]
[1772123416980,0.45473195,2036.6,2035.9,0.0011]
[1772123417493,1.22765664,2036.4,2035.9,0.0011]
[1772123418074,0.45473195,2036.3,2035.7,0.0011]
[1772123419014,2.129912,2036.0,2035.5,0.0011]
[1772123419218,1.60873195,2035.9,2035.2,0.0011]
[1772123419374,1.22801846,2035.8,2035.2,0.0011]
[1772123420104,6.52080582,2035.9,2035.2,0.0011]
[1772123420105,2.38199474,2035.9,2035.2,0.48736829]
[1772123420305,1.154,2036.1,2035.3,0.48626829]
[1772123420482,4.91074554,2036.4,2035.3,0.48626829]
[1772123420679,0.796,2036.3,2035.6,0.48626829]
[1772123421505,0.796,2036.3,2035.7,1.22807879]
[1772123421506,2.02376122,2036.3,2035.7,1.22807879]
[1772123421712,2.02376122,2036.3,2035.7,1.71434708]
[1772123421901,1.22768083,2036.4,2035.8,0.48626829]
[1772123422489,4.91047059,2036.5,2035.8,0.48626829]
[1772123422490,1.22765501,2036.5,2035.8,0.48626829]
[1772123423619,1.22765501,2036.5,2035.8,1.22797121]